fUSD/lending_fUSD_20260613
["ID","MTS","AMOUNT","RATE_DAILY","PERIOD"]
[424928958,1781284270000,-300.0,0.00014999,2]
[424928957,1781284270000,-300.0,0.00014999,2]
[424928962,1781284270000,-475.94190023,0.00015,2]
[424928960,1781284270000,-777894.20383285,0.00015,2]
[424928959,1781284270000,-300.0,0.00014999,2]
[424928953,1781284270000,-500.0,0.00014999,2]
[424928955,1781284270000,-500.0,0.00014999,2]
[424928964,1781284270000,-344924.65857345,0.00015,2]
[424928963,1781284270000,-318.58,0.00015,2]
[424928965,1781284270000,-1200.0,0.00015,2]
[424928956,1781284270000,-277.26176273,0.00014999,2]
[424928967,1781284270000,-300.0,0.00015,2]
[424928968,1781284270000,-918.98,0.00015,2]
[424928970,1781284270000,-2000.0,0.00015,2]
[424928969,1781284270000,-2000.0,0.00015,2]
[424928972,1781284270000,-2000.0,0.00015,2]
[424928971,1781284270000,-2000.0,0.00015,2]
[424928974,1781284270000,-800.0,0.00015,2]
[424928973,1781284270000,-2000.0,0.00015,2]
[424928976,1781284270000,-2000.0,0.00015,2]
[424928975,1781284270000,-2000.0,0.00015,2]
[424928977,1781284270000,-500.0,0.00015,2]
[424928927,1781284270000,-500.0,0.00014999,2]
[424928966,1781284270000,-500.0,0.00015,2]
[424928952,1781284270000,-500.0,0.00014999,2]
[424928961,1781284270000,-2081.90101932,0.00015,2]
[424928950,1781284270000,-500.0,0.00014999,2]
[424928925,1781284270000,-500.0,0.00014999,2]
[424928924,1781284270000,-500.0,0.00014999,2]
[424928947,1781284270000,-500.0,0.00014999,2]
[424928923,1781284270000,-500.0,0.00014999,2]
[424928930,1781284270000,-500.0,0.00014999,2]
[424928935,1781284270000,-500.0,0.00014999,2]
[424928932,1781284270000,-500.0,0.00014999,2]
[424928938,1781284270000,-500.0,0.00014999,2]
[424928939,1781284270000,-500.0,0.00014999,2]
[424928934,1781284270000,-500.0,0.00014999,2]
[424928933,1781284270000,-500.0,0.00014999,2]
[424928940,1781284270000,-500.0,0.00014999,2]
[424928928,1781284270000,-500.0,0.00014999,2]
[424928931,1781284270000,-500.0,0.00014999,2]
[424928936,1781284270000,-500.0,0.00014999,2]
[424928951,1781284270000,-500.0,0.00014999,2]
[424928944,1781284270000,-500.0,0.00014999,2]
[424928946,1781284270000,-500.0,0.00014999,2]
[424928942,1781284270000,-500.0,0.00014999,2]
[424928949,1781284270000,-500.0,0.00014999,2]
[424928945,1781284270000,-500.0,0.00014999,2]
[424928943,1781284270000,-500.0,0.00014999,2]
[424928941,1781284270000,-500.0,0.00014999,2]
[424928937,1781284270000,-500.0,0.00014999,2]
[424928948,1781284270000,-500.0,0.00014999,2]
[424928995,1781284271000,-2000.0,0.00015,2]
[424928987,1781284271000,-2000.0,0.00015,2]
[424929002,1781284271000,-2000.0,0.00015,2]
[424928996,1781284271000,-2000.0,0.00015,2]
[424929001,1781284271000,-2000.0,0.00015,2]
[424928997,1781284271000,-2000.0,0.00015,2]
[424928985,1781284271000,-176.85,0.00015,2]
[424928988,1781284271000,-2000.0,0.00015,2]
[424928986,1781284271000,-2000.0,0.00015,2]
[424928989,1781284271000,-2000.0,0.00015,2]
[424928991,1781284271000,-2000.0,0.00015,2]
[424928990,1781284271000,-2000.0,0.00015,2]
[424928982,1781284271000,-169.88,0.00015,2]
[424928983,1781284271000,-707.41,0.00015,2]
[424928980,1781284271000,-679.49,0.00015,2]
[424928981,1781284271000,-283.12,0.00015,2]
[424928979,1781284271000,-700.0,0.00015,2]
[424928978,1781284271000,-2000.0,0.00015,2]
[424928999,1781284271000,-2000.0,0.00015,2]
[424928984,1781284271000,-294.75,0.00015,2]
[424928998,1781284271000,-2000.0,0.00015,2]
[424928992,1781284271000,-2000.0,0.00015,2]
[424928993,1781284271000,-2000.0,0.00015,2]
[424929020,1781284271000,-389.644,0.00015,2]
[424929021,1781284271000,-16134.51906501,0.00015,2]
[424929016,1781284271000,-910.61,0.00015,2]
[424929018,1781284271000,-241224.96847004,0.00015,2]
[424929017,1781284271000,-1746.37,0.00015,2]
[424929019,1781284271000,-252.76690883,0.00015,2]
[424929015,1781284271000,-2000.0,0.00015,2]
[424929012,1781284271000,-2000.0,0.00015,2]
[424929009,1781284271000,-2000.0,0.00015,2]
[424929013,1781284271000,-2000.0,0.00015,2]
[424929022,1781284271000,-10766.2255638,0.00015,2]
[424929011,1781284271000,-2000.0,0.00015,2]
[424929010,1781284271000,-1196.08,0.00015,2]
[424928994,1781284271000,-2000.0,0.00015,2]
[424929004,1781284271000,-2000.0,0.00015,2]
[424929005,1781284271000,-2000.0,0.00015,2]
[424929000,1781284271000,-784.35,0.00015,2]
[424929014,1781284271000,-985.48,0.00015,2]
[424929007,1781284271000,-2000.0,0.00015,2]
[424929006,1781284271000,-1993.48,0.00015,2]
[424929003,1781284271000,-2000.0,0.00015,2]
[424929008,1781284271000,-2000.0,0.00015,2]
[424929024,1781284272000,-500.0,0.00013425,2]
[424929023,1781284272000,-2000.0,0.000102,2]
[424929027,1781284272000,-500.0,0.00013425,2]
[424929025,1781284272000,-500.0,0.00013425,2]
[424929028,1781284272000,-500.0,0.00013425,2]
[424929029,1781284272000,-76039.15859381,0.00015,2]
[424929032,1781284272000,-2000.68,0.00015,2]
[424929026,1781284272000,-500.0,0.00013425,2]
[424929030,1781284272000,-112.55015632,0.00015,2]
[424929031,1781284272000,-81.40948874,0.00015,2]
[424929035,1781284482000,-160.0,9.36e-05,2]
[424929036,1781284537000,-261.666276,0.00010049,2]
[424929037,1781284592000,-822.2416,0.000101,2]
[424929038,1781284644000,-337.19286504,0.00010101,2]
[424929039,1781284697000,-167.61255897,0.00010101,2]
[424929040,1781284752000,-236.03500553,0.000101,2]
[424929041,1781284804000,-225.67621212,0.000101,2]
[424929043,1781284859000,-292.95065415,0.00010099,2]
[424929044,1781284911000,-150.0,0.00010098,2]
[424929045,1781284966000,-157.97334848,0.00010099,2]
[424929046,1781285130000,-205.06545791,0.00010097,2]
[424929048,1781285184000,-165.22450387,0.00010097,2]
[424929049,1781285237000,-500.0,0.00010096,2]
[424929050,1781285238000,-272.26699953,0.00010096,2]
[424929051,1781285291000,-278.48560389,0.00010096,2]
[424929052,1781285343000,-500.0,0.00010095,2]
[424929054,1781285398000,-235.52682239,0.00010095,2]
[424929831,1781285450000,-500.85319598,9.996e-05,2]
[424929832,1781285450000,-370.66038642,9.996e-05,2]
[424929833,1781285450000,-745655.54553604,9.996e-05,2]
[424929830,1781285450000,-1315.89633602,9.996e-05,2]
[424929829,1781285450000,-1188.79418314,9.996e-05,2]
[424929828,1781285450000,-542.05691733,9.996e-05,2]
[424929827,1781285450000,-3450.55,9.996e-05,2]
[424929837,1781285451000,-591.75541627,9.996e-05,2]
[424929834,1781285451000,-1000.0,9.996e-05,2]
[424929836,1781285451000,-1055.35405635,9.996e-05,2]
[424929839,1781285451000,-6743.40851003,9.996e-05,2]
[424929835,1781285451000,-3180.87781936,9.996e-05,2]
[424929842,1781285451000,-600.0,9.996e-05,2]
[424929843,1781285451000,-7927.93428598,9.996e-05,2]
[424929840,1781285451000,-616.47010295,9.996e-05,2]
[424929841,1781285451000,-720.1731928,9.996e-05,2]
[424929844,1781285451000,-263.36630388,9.996e-05,2]
[424929838,1781285451000,-1141.8503,9.996e-05,2]
[424929878,1781285452000,-810.86433707,0.00010095,2]
[424929876,1781285452000,-500.0,0.00010095,2]
[424929872,1781285452000,-500.0,0.00010095,2]
[424929870,1781285452000,-500.0,0.00010095,2]
[424929874,1781285452000,-500.0,0.00010095,2]
[424929873,1781285452000,-500.0,0.00010095,2]
[424929875,1781285452000,-500.0,0.00010095,2]
[424929871,1781285452000,-500.0,0.00010095,2]
[424929869,1781285452000,-500.0,0.00010095,2]
[424929879,1781285452000,-810.86433707,0.00010095,2]
[424929880,1781285452000,-810.86433707,0.00010095,2]
[424929868,1781285452000,-200.00000004,0.00010095,2]
[424929884,1781285452000,-810.86433707,0.00010095,2]
[424929881,1781285452000,-810.86433707,0.00010095,2]
[424929883,1781285452000,-810.86433707,0.00010095,2]
[424929882,1781285452000,-810.86433707,0.00010095,2]
[424929887,1781285452000,-810.86433707,0.00010095,2]
[424929885,1781285452000,-810.86433707,0.00010095,2]
[424929877,1781285452000,-500.0,0.00010095,2]
[424929859,1781285452000,-500.0,0.00010095,2]
[424929850,1781285452000,-500.0,0.00010095,2]
[424929865,1781285452000,-500.0,0.00010095,2]
[424929888,1781285452000,-810.86433707,0.00010095,2]
[424929845,1781285452000,-1557.38467929,9.996e-05,2]
[424929846,1781285452000,-372.85105729,9.996e-05,2]
[424929847,1781285452000,-171.7537573,9.996e-05,2]
[424929848,1781285452000,-4095.31492154,9.996e-05,2]
[424929849,1781285452000,-716937.14904203,9.996e-05,2]
[424929852,1781285452000,-256.53220928,0.00010095,2]
[424929854,1781285452000,-500.0,0.00010095,2]
[424929853,1781285452000,-500.0,0.00010095,2]
[424929856,1781285452000,-500.0,0.00010095,2]
[424929851,1781285452000,-500.0,0.00010095,2]
[424929855,1781285452000,-500.0,0.00010095,2]
[424929858,1781285452000,-500.0,0.00010095,2]
[424929857,1781285452000,-500.0,0.00010095,2]
[424929864,1781285452000,-500.0,0.00010095,2]
[424929866,1781285452000,-500.0,0.00010095,2]
[424929861,1781285452000,-500.0,0.00010095,2]
[424929860,1781285452000,-500.0,0.00010095,2]
[424929862,1781285452000,-500.0,0.00010095,2]
[424929867,1781285452000,-500.0,0.00010095,2]
[424929886,1781285452000,-810.86433707,0.00010095,2]
[424929863,1781285452000,-500.0,0.00010095,2]
[424929900,1781285452000,-810.86433707,0.00010095,2]
[424929915,1781285452000,-810.86433707,0.00010095,2]
[424929914,1781285452000,-810.86433707,0.00010095,2]
[424929919,1781285452000,-793.23685148,0.00010095,2]
[424929922,1781285452000,-793.23685148,0.00010095,2]
[424929918,1781285452000,-810.86433707,0.00010095,2]
[424929923,1781285452000,-793.23685148,0.00010095,2]
[424929921,1781285452000,-793.23685148,0.00010095,2]
[424929917,1781285452000,-810.86433707,0.00010095,2]
[424929916,1781285452000,-810.86433707,0.00010095,2]
[424929924,1781285452000,-793.23685148,0.00010095,2]
[424929926,1781285452000,-793.23685148,0.00010095,2]
[424929925,1781285452000,-793.23685148,0.00010095,2]
[424929933,1781285452000,-793.23685148,0.00010095,2]
[424929927,1781285452000,-793.23685148,0.00010095,2]
[424929929,1781285452000,-793.23685148,0.00010095,2]
[424929928,1781285452000,-793.23685148,0.00010095,2]
[424929932,1781285452000,-793.23685148,0.00010095,2]
[424929930,1781285452000,-793.23685148,0.00010095,2]
[424929889,1781285452000,-810.86433707,0.00010095,2]
[424929909,1781285452000,-810.86433707,0.00010095,2]
[424929931,1781285452000,-793.23685148,0.00010095,2]
[424929920,1781285452000,-793.23685148,0.00010095,2]
[424929906,1781285452000,-810.86433707,0.00010095,2]
[424929905,1781285452000,-810.86433707,0.00010095,2]
[424929890,1781285452000,-810.86433707,0.00010095,2]
[424929892,1781285452000,-810.86433707,0.00010095,2]
[424929891,1781285452000,-810.86433707,0.00010095,2]
[424929897,1781285452000,-810.86433707,0.00010095,2]
[424929899,1781285452000,-810.86433707,0.00010095,2]
[424929895,1781285452000,-810.86433707,0.00010095,2]
[424929896,1781285452000,-810.86433707,0.00010095,2]
[424929898,1781285452000,-810.86433707,0.00010095,2]
[424929893,1781285452000,-810.86433707,0.00010095,2]
[424929901,1781285452000,-810.86433707,0.00010095,2]
[424929903,1781285452000,-810.86433707,0.00010095,2]
[424929911,1781285452000,-810.86433707,0.00010095,2]
[424929912,1781285452000,-810.86433707,0.00010095,2]
[424929913,1781285452000,-810.86433707,0.00010095,2]
[424929902,1781285452000,-810.86433707,0.00010095,2]
[424929904,1781285452000,-810.86433707,0.00010095,2]
[424929908,1781285452000,-810.86433707,0.00010095,2]
[424929907,1781285452000,-810.86433707,0.00010095,2]
[424929894,1781285452000,-810.86433707,0.00010095,2]
[424929910,1781285452000,-810.86433707,0.00010095,2]
[424929961,1781285453000,-150.0,0.00013164,2]
[424929971,1781285453000,-169.0,0.00013425,2]
[424929972,1781285453000,-169.0,0.00013425,2]
[424929965,1781285453000,-158.24,0.00013377,2]
[424929970,1781285453000,-169.0,0.00013425,2]
[424929964,1781285453000,-595.04115452,0.0001337,2]
[424929968,1781285453000,-169.0,0.00013425,2]
[424929967,1781285453000,-169.0,0.00013425,2]
[424929966,1781285453000,-169.0,0.00013425,2]
[424929973,1781285453000,-169.0,0.00013425,2]
[424929969,1781285453000,-169.0,0.00013425,2]
[424929975,1781285453000,-500.0,0.00013425,2]
[424929989,1781285453000,-500.0,0.00013698,2]
[424929977,1781285453000,-150.0,0.00013425,2]
[424929978,1781285453000,-308.91,0.00013455,2]
[424929980,1781285453000,-994.35,0.00013482,2]
[424929976,1781285453000,-350.0,0.00013425,2]
[424929979,1781285453000,-166.66,0.00013472,2]
[424929981,1781285453000,-3158.3392,0.00013499,2]
[424929983,1781285453000,-4574.1865,0.00013598,2]
[424929984,1781285453000,-2500.0,0.00013599,2]
[424929985,1781285453000,-7077.74061418,0.00013599,2]
[424929982,1781285453000,-161.31,0.00013551,2]
[424929963,1781285453000,-302.28,0.00013301,2]
[424929974,1781285453000,-500.0,0.00013425,2]
[424929962,1781285453000,-166.66,0.00013211,2]
[424929938,1781285453000,-793.23685148,0.00010095,2]
[424929951,1781285453000,-166.66,0.00012687,2]
[424929936,1781285453000,-793.23685148,0.00010095,2]
[424929935,1781285453000,-793.23685148,0.00010095,2]
[424929934,1781285453000,-793.23685148,0.00010095,2]
[424929937,1781285453000,-793.23685148,0.00010095,2]
[424929988,1781285453000,-500.0,0.00013698,2]
[424929940,1781285453000,-793.23685148,0.00010095,2]
[424929939,1781285453000,-793.23685148,0.00010095,2]
[424929942,1781285453000,-160.0,0.00010095,2]
[424929943,1781285453000,-160.0,0.00010123,2]
[424929944,1781285453000,-2000.0,0.000102,2]
[424929941,1781285453000,-793.23685148,0.00010095,2]
[424929960,1781285453000,-2210.95,0.00013162,2]
[424929947,1781285453000,-151.0,0.00011553,2]
[424929948,1781285453000,-166.66,0.00012426,2]
[424929950,1781285453000,-532.85,0.00012671,2]
[424929955,1781285453000,-595.04115452,0.00012827,2]
[424929956,1781285453000,-702.68,0.00012903,2]
[424929949,1781285453000,-265.94,0.0001265,2]
[424929957,1781285453000,-166.66,0.00012949,2]
[424929959,1781285453000,-161.31,0.00013127,2]
[424929954,1781285453000,-422.68,0.00012816,2]
[424929958,1781285453000,-4490.23,0.00012993,2]
[424929953,1781285453000,-175.59,0.00012779,2]
[424929952,1781285453000,-161.31,0.00012704,2]
[424929946,1781285453000,-152.0,0.00011553,2]
[424929986,1781285453000,-500.0,0.00013698,2]
[424929945,1781285453000,-196.0,0.0001021,2]
[424929992,1781285453000,-500.0,0.00013698,2]
[424930017,1781285453000,-886.22326288,0.00013699,2]
[424930020,1781285453000,-886.22326288,0.00013699,2]
[424930021,1781285453000,-886.22326288,0.00013699,2]
[424930023,1781285453000,-886.22326288,0.00013699,2]
[424930024,1781285453000,-886.22326288,0.00013699,2]
[424930022,1781285453000,-886.22326288,0.00013699,2]
[424930025,1781285453000,-886.22326288,0.00013699,2]
[424930027,1781285453000,-886.22326288,0.00013699,2]
[424930031,1781285453000,-886.22326288,0.00013699,2]
[424930030,1781285453000,-886.22326288,0.00013699,2]
[424930029,1781285453000,-886.22326288,0.00013699,2]
[424930032,1781285453000,-886.22326288,0.00013699,2]
[424930037,1781285453000,-886.22326288,0.00013699,2]
[424930041,1781285453000,-886.22326288,0.00013699,2]
[424930033,1781285453000,-886.22326288,0.00013699,2]
[424930036,1781285453000,-886.22326288,0.00013699,2]
[424930028,1781285453000,-886.22326288,0.00013699,2]
[424930038,1781285453000,-886.22326288,0.00013699,2]
[424930034,1781285453000,-886.22326288,0.00013699,2]
[424930035,1781285453000,-886.22326288,0.00013699,2]
[424930040,1781285453000,-886.22326288,0.00013699,2]
[424930039,1781285453000,-886.22326288,0.00013699,2]
[424930042,1781285453000,-886.22326288,0.00013699,2]
[424930043,1781285453000,-886.22326288,0.00013699,2]
[424929991,1781285453000,-500.0,0.00013698,2]
[424930015,1781285453000,-886.22326288,0.00013699,2]
[424930018,1781285453000,-886.22326288,0.00013699,2]
[424930044,1781285453000,-886.22326288,0.00013699,2]
[424930016,1781285453000,-886.22326288,0.00013699,2]
[424930019,1781285453000,-886.22326288,0.00013699,2]
[424929990,1781285453000,-500.0,0.00013698,2]
[424929994,1781285453000,-500.0,0.00013698,2]
[424929993,1781285453000,-500.0,0.00013698,2]
[424929995,1781285453000,-500.0,0.00013698,2]
[424929996,1781285453000,-500.0,0.00013698,2]
[424929998,1781285453000,-250.0,0.00013699,2]
[424929987,1781285453000,-500.0,0.00013698,2]
[424929999,1781285453000,-200.0,0.00013699,2]
[424930000,1781285453000,-886.22326288,0.00013699,2]
[424930002,1781285453000,-886.22326288,0.00013699,2]
[424930003,1781285453000,-886.22326288,0.00013699,2]
[424929997,1781285453000,-287.06193287,0.00013698,2]
[424930005,1781285453000,-886.22326288,0.00013699,2]
[424930008,1781285453000,-886.22326288,0.00013699,2]
[424930006,1781285453000,-886.22326288,0.00013699,2]
[424930012,1781285453000,-886.22326288,0.00013699,2]
[424930014,1781285453000,-886.22326288,0.00013699,2]
[424930009,1781285453000,-886.22326288,0.00013699,2]
[424930010,1781285453000,-886.22326288,0.00013699,2]
[424930011,1781285453000,-886.22326288,0.00013699,2]
[424930004,1781285453000,-886.22326288,0.00013699,2]
[424930007,1781285453000,-886.22326288,0.00013699,2]
[424930013,1781285453000,-886.22326288,0.00013699,2]
[424930001,1781285453000,-886.22326288,0.00013699,2]
[424930026,1781285453000,-886.22326288,0.00013699,2]
[424930083,1781285454000,-2125.96614043,0.00013699,2]
[424930080,1781285454000,-2125.96614043,0.00013699,2]
[424930081,1781285454000,-2125.96614043,0.00013699,2]
[424930073,1781285454000,-2125.96614043,0.00013699,2]
[424930078,1781285454000,-2125.96614043,0.00013699,2]
[424930077,1781285454000,-2125.96614043,0.00013699,2]
[424930076,1781285454000,-2125.96614043,0.00013699,2]
[424930071,1781285454000,-2125.96614043,0.00013699,2]
[424930079,1781285454000,-2125.96614043,0.00013699,2]
[424930082,1781285454000,-2125.96614043,0.00013699,2]
[424930101,1781285454000,-2971.23349175,0.00014233,2]
[424930089,1781285454000,-500.0,0.00013879,2]
[424930085,1781285454000,-2125.96614043,0.00013699,2]
[424930088,1781285454000,-811.396,0.00013823,2]
[424930086,1781285454000,-2125.96614043,0.00013699,2]
[424930087,1781285454000,-166.66,0.00013734,2]
[424930090,1781285454000,-595.04115452,0.00013913,2]
[424930092,1781285454000,-161.31,0.00013974,2]
[424930091,1781285454000,-2000.0,0.00013953,2]
[424930094,1781285454000,-256.3,0.00014104,2]
[424930097,1781285454000,-500.0,0.00014232,2]
[424930100,1781285454000,-1986.19804709,0.00014233,2]
[424930075,1781285454000,-2125.96614043,0.00013699,2]
[424930084,1781285454000,-2125.96614043,0.00013699,2]
[424930074,1781285454000,-2125.96614043,0.00013699,2]
[424930055,1781285454000,-886.22326288,0.00013699,2]
[424930066,1781285454000,-2125.96614043,0.00013699,2]
[424930102,1781285454000,-4020.1821,0.00014233,2]
[424930047,1781285454000,-886.22326288,0.00013699,2]
[424930045,1781285454000,-886.22326288,0.00013699,2]
[424930048,1781285454000,-886.22326288,0.00013699,2]
[424930046,1781285454000,-886.22326288,0.00013699,2]
[424930051,1781285454000,-886.22326288,0.00013699,2]
[424930049,1781285454000,-886.22326288,0.00013699,2]
[424930056,1781285454000,-886.22326288,0.00013699,2]
[424930059,1781285454000,-886.22326288,0.00013699,2]
[424930058,1781285454000,-886.22326288,0.00013699,2]
[424930053,1781285454000,-886.22326288,0.00013699,2]
[424930052,1781285454000,-886.22326288,0.00013699,2]
[424930054,1781285454000,-886.22326288,0.00013699,2]
[424930057,1781285454000,-886.22326288,0.00013699,2]
[424930050,1781285454000,-886.22326288,0.00013699,2]
[424930070,1781285454000,-2125.96614043,0.00013699,2]
[424930061,1781285454000,-2125.96614043,0.00013699,2]
[424930068,1781285454000,-2125.96614043,0.00013699,2]
[424930063,1781285454000,-2125.96614043,0.00013699,2]
[424930069,1781285454000,-2125.96614043,0.00013699,2]
[424930060,1781285454000,-2125.96614043,0.00013699,2]
[424930062,1781285454000,-2125.96614043,0.00013699,2]
[424930065,1781285454000,-2125.96614043,0.00013699,2]
[424930064,1781285454000,-2125.96614043,0.00013699,2]
[424930067,1781285454000,-2125.96614043,0.00013699,2]
[424930072,1781285454000,-2125.96614043,0.00013699,2]
[424930096,1781285454000,-500.0,0.00014231,2]
[424930114,1781285454000,-702.68,0.00014515,2]
[424930099,1781285454000,-1125.8869566,0.00014233,2]
[424930130,1781285454000,-9369.163619,0.00014797,2]
[424930129,1781285454000,-399.9292774,0.00014795,2]
[424930132,1781285454000,-9369.16361894,0.00014799,2]
[424930133,1781285454000,-668.42109823,0.000148,2]
[424930127,1781285454000,-350.0,0.00014722,2]
[424930135,1781285454000,-177.57493216,0.000148,2]
[424930134,1781285454000,-3267.50610552,0.000148,2]
[424930136,1781285454000,-1900.0,0.000148,5]
[424930093,1781285454000,-250.0,0.00014,2]
[424930141,1781285454000,-9369.16361894,0.00014806,2]
[424930139,1781285454000,-9369.16361894,0.00014803,2]
[424930131,1781285454000,-9369.16361894,0.00014798,2]
[424930142,1781285454000,-9369.16361894,0.00014807,2]
[424930144,1781285454000,-9369.16361894,0.00014808,2]
[424930143,1781285454000,-2093.05529438,0.00014808,2]
[424930147,1781285454000,-500.0,0.00014849,2]
[424930146,1781285454000,-500.0,0.00014849,2]
[424930148,1781285454000,-30000.0,0.0001485,2]
[424930145,1781285454000,-360.35654585,0.00014849,2]
[424930150,1781285454000,-161.10103114,0.00014873,2]
[424930149,1781285454000,-399.9292774,0.00014864,2]
[424930153,1781285454000,-9420.1314538,0.00014892,2]
[424930151,1781285454000,-200.0,0.0001488,2]
[424930152,1781285454000,-1100.49899,0.0001488,2]
[424930140,1781285454000,-9369.16361894,0.00014804,2]
[424930138,1781285454000,-9369.16361894,0.00014802,2]
[424930137,1781285454000,-9369.16361894,0.00014801,2]
[424930125,1781285454000,-11739.4761173,0.000147,2]
[424930095,1781285454000,-2093.05529438,0.00014136,2]
[424930128,1781285454000,-399.9292774,0.00014727,2]
[424930103,1781285454000,-2093.05529438,0.00014271,2]
[424930105,1781285454000,-350.0,0.00014369,2]
[424930115,1781285454000,-2093.05529438,0.00014539,2]
[424930107,1781285454000,-2664.0,0.000144,2]
[424930104,1781285454000,-336.26,0.00014308,2]
[424930106,1781285454000,-350.0,0.00014371,2]
[424930109,1781285454000,-2093.05529438,0.00014405,2]
[424930108,1781285454000,-300.0,0.000144,5]
[424930110,1781285454000,-422.68,0.00014418,2]
[424930112,1781285454000,-2000.0,0.000145,2]
[424930098,1781285454000,-426.63137804,0.00014233,2]
[424930113,1781285454000,-700.0,0.000145,5]
[424930111,1781285454000,-595.04115452,0.00014457,2]
[424930124,1781285454000,-429.031192,0.00014675,2]
[424930126,1781285454000,-1500.0,0.000147,5]
[424930118,1781285454000,-216.99007,0.00014602,2]
[424930116,1781285454000,-8335.25431397,0.000146,2]
[424930120,1781285454000,-1500.0,0.00014617,2]
[424930119,1781285454000,-168.331692,0.00014602,2]
[424930121,1781285454000,-151.0,0.0001463,2]
[424930122,1781285454000,-350.0,0.0001465,2]
[424930117,1781285454000,-1100.0,0.000146,5]
[424930123,1781285454000,-2093.05529438,0.00014674,2]
[424930166,1781285455000,-500.0,0.00014899,2]
[424930175,1781285455000,-500.0,0.00014899,2]
[424930180,1781285455000,-2500000.0,0.000149,2]
[424930172,1781285455000,-500.0,0.00014899,2]
[424930171,1781285455000,-500.0,0.00014899,2]
[424930167,1781285455000,-500.0,0.00014899,2]
[424930169,1781285455000,-500.0,0.00014899,2]
[424930168,1781285455000,-500.0,0.00014899,2]
[424930170,1781285455000,-500.0,0.00014899,2]
[424930162,1781285455000,-500.0,0.00014899,2]
[424930157,1781285455000,-1388.10958025,0.00014899,5]
[424930165,1781285455000,-500.0,0.00014899,2]
[424930164,1781285455000,-500.0,0.00014899,2]
[424930160,1781285455000,-500.0,0.00014899,2]
[424930161,1781285455000,-500.0,0.00014899,2]
[424930158,1781285455000,-500.0,0.00014899,2]
[424930159,1781285455000,-500.0,0.00014899,2]
[424930155,1781285455000,-1363.62851665,0.00014899,5]
[424930156,1781285455000,-1108.95049288,0.00014899,5]
[424930154,1781285455000,-151.0,0.00014897,2]
[424930163,1781285455000,-500.0,0.00014899,2]
[424930178,1781285455000,-2000.0,0.000149,2]
[424930173,1781285455000,-500.0,0.00014899,2]
[424930177,1781285455000,-250.0,0.000149,2]
[424930200,1781285455000,-443.72066,0.00014908,2]
[424930197,1781285455000,-4221.53158858,0.00014908,2]
[424930199,1781285455000,-390.04661957,0.00014908,2]
[424930194,1781285455000,-300.0,0.00014907,2]
[424930198,1781285455000,-1124.98822835,0.00014908,2]
[424930196,1781285455000,-4979.2,0.00014908,2]
[424930193,1781285455000,-367.47298027,0.00014907,2]
[424930195,1781285455000,-285098.36228459,0.00014908,2]
[424930190,1781285455000,-702.55853752,0.00014907,2]
[424930188,1781285455000,-500.0,0.00014907,2]
[424930187,1781285455000,-500.0,0.00014907,2]
[424930176,1781285455000,-584.0,0.000149,5]
[424930183,1781285455000,-151.0,0.00014905,2]
[424930189,1781285455000,-500.0,0.00014907,2]
[424930181,1781285455000,-10000.0,0.000149,2]
[424930179,1781285455000,-678.49707226,0.000149,2]
[424930191,1781285455000,-300.0,0.00014907,2]
[424930174,1781285455000,-500.0,0.00014899,2]
[424930182,1781285455000,-300.0,0.000149,5]
[424930184,1781285455000,-500.0,0.00014907,2]
[424930186,1781285455000,-500.0,0.00014907,2]
[424930185,1781285455000,-500.0,0.00014907,2]
[424930192,1781285455000,-300.0,0.00014907,2]
[424930205,1781285456000,-151.0,0.00014908,2]
[424930201,1781285456000,-807.01179999,0.00014908,2]